lending/lending_fUSD_20260312
["ID","MTS","AMOUNT","RATE_DAILY","PERIOD"]
[408261565,1773329475075,-300.0,0.000429,2]
[408261566,1773329475087,-300.0,0.000429,2]
[408261567,1773329475095,-300.00000101,0.000429,2]
[408261568,1773329475104,-300.0,0.000429,2]
[408261569,1773329475113,-484.36421245,0.000429,2]
[408261570,1773329475123,-1048.94593306,0.000429,2]
[408261571,1773329475132,-306.85773388,0.000429,2]
[408261572,1773329475141,-856.81571584,0.000429,2]
[408261573,1773329475150,-308.12831897,0.000429,2]
[408261574,1773329475159,-300.0,0.000429,2]
[408261575,1773329475168,-300.0,0.000429,2]
[408261576,1773329475177,-459.7549358,0.000429,2]
[408261577,1773329475186,-300.0,0.000429,2]
[408261578,1773329475196,-300.0,0.000429,2]
[408261579,1773329475205,-448.04173911,0.000429,2]
[408261580,1773329475215,-300.0,0.000429,2]
[408261581,1773329475224,-302.22433018,0.000429,2]
[408261582,1773329475233,-300.0,0.000429,2]
[408261583,1773329475242,-520.03833215,0.000429,2]
[408261584,1773329475251,-307.19554063,0.000429,2]
[408261585,1773329475259,-300.0,0.000429,2]
[408261586,1773329475268,-300.0,0.000429,2]
[408261587,1773329475277,-416.14020677,0.000429,2]
[408261588,1773329475286,-300.0,0.000429,2]
[408261589,1773329475294,-300.00000001,0.000429,2]
[408261590,1773329475303,-1085.47073912,0.000429,2]
[408261591,1773329475312,-300.0,0.000429,2]
[408261592,1773329475321,-300.0,0.000429,2]
[408261593,1773329475330,-300.0,0.000429,2]
[408261594,1773329475338,-465.97780702,0.000429,2]
[408261595,1773329475347,-300.0,0.000429,2]
[408261596,1773329475356,-300.0,0.000429,2]
[408261597,1773329475365,-300.0,0.000429,2]
[408261598,1773329475374,-300.0,0.000429,2]
[408261599,1773329475383,-300.0,0.000429,2]
[408261600,1773329475392,-300.0,0.000429,2]
[408261601,1773329475400,-300.0,0.000429,2]
[408261602,1773329475409,-1049.32462188,0.000429,2]
[408261603,1773329475419,-306.85773388,0.000429,2]
[408261604,1773329475428,-856.81571584,0.000429,2]
[408261605,1773329475437,-308.12831895,0.000429,2]
[408261606,1773329475446,-537.4475865,0.000429,2]
[408261607,1773329475455,-300.0,0.000429,2]
[408261608,1773329475464,-459.7549358,0.000429,2]
[408261609,1773329475473,-300.0,0.000429,2]
[408261610,1773329475482,-300.0,0.000429,2]
[408261611,1773329475491,-448.04173909,0.000429,2]
[408261612,1773329475500,-300.0,0.000429,2]
[408261613,1773329475509,-302.22433016,0.000429,2]
[408261614,1773329475519,-300.0,0.000429,2]
[408261615,1773329475528,-520.03833219,0.000429,2]
[408261616,1773329475537,-307.19554063,0.000429,2]
[408261617,1773329475547,-300.0,0.000429,2]
[408261618,1773329475556,-300.0,0.000429,2]
[408261619,1773329475565,-416.14020677,0.000429,2]
[408261620,1773329475574,-300.0,0.000429,2]
[408261621,1773329475583,-1085.47073912,0.000429,2]
[408261622,1773329475593,-300.00000001,0.000429,2]
[408261623,1773329475602,-300.0,0.000429,2]
[408261624,1773329475610,-300.0,0.000429,2]
[408261625,1773329475619,-300.0,0.000429,2]
[408261626,1773329475628,-300.0,0.000429,2]
[408261627,1773329475637,-1049.32462188,0.000429,2]
[408261628,1773329475646,-306.85773388,0.000429,2]
[408261629,1773329475656,-856.81571584,0.000429,2]
[408261630,1773329475665,-308.12831897,0.000429,2]
[408261631,1773329475674,-300.0,0.000429,2]
[408261632,1773329475683,-459.7549358,0.000429,2]
[408261633,1773329475692,-300.0,0.000429,2]
[408261634,1773329475703,-300.0,0.000429,2]
[408261635,1773329475713,-448.04173911,0.000429,2]
[408261636,1773329475722,-300.0,0.000429,2]
[408261637,1773329475732,-302.22433016,0.000429,2]
[408261638,1773329475742,-300.0,0.000429,2]
[408261639,1773329475751,-520.03833215,0.000429,2]
[408261640,1773329475760,-307.19554063,0.000429,2]
[408261641,1773329475770,-300.0,0.000429,2]
[408261642,1773329475780,-451.73102612,0.000429,2]
[408261643,1773329475789,-657.73774461,0.000429,2]
[408261644,1773329475799,-300.0,0.000429,2]
[408261645,1773329475808,-1085.47073912,0.000429,2]
[408261646,1773329475817,-300.0,0.000429,2]
[408261647,1773329475827,-300.0,0.000429,2]
[408261648,1773329475836,-300.0,0.000429,2]
[408261649,1773329475845,-300.0,0.000429,2]
[408261650,1773329475855,-300.0,0.000429,2]
[408261651,1773329475864,-1049.32462188,0.000429,2]
[408261652,1773329475873,-306.85773388,0.000429,2]
[408261653,1773329475882,-856.81571584,0.000429,2]
[408261654,1773329475891,-308.12831895,0.000429,2]
[408261655,1773329475901,-300.0,0.000429,2]
[408261656,1773329475910,-459.7549358,0.000429,2]
[408261657,1773329475919,-300.0,0.000429,2]
[408261658,1773329475930,-300.0,0.000429,2]
[408261659,1773329475939,-448.04173909,0.000429,2]
[408261660,1773329475950,-300.0,0.000429,2]
[408261661,1773329475960,-302.22433018,0.000429,2]
[408261662,1773329475969,-300.0,0.000429,2]
[408261663,1773329475979,-520.03833218,0.000429,2]
[408261664,1773329475988,-307.19554063,0.000429,2]
[408261665,1773329475998,-300.0,0.000429,2]
[408261666,1773329476008,-300.0,0.000429,2]
[408261667,1773329476021,-1085.47073912,0.000429,2]
[408261668,1773329476031,-300.0,0.000429,2]
[408261669,1773329476040,-300.0,0.000429,2]
[408261670,1773329476051,-300.0,0.000429,2]
[408261671,1773329476061,-300.0,0.000429,2]
[408261672,1773329476070,-300.0,0.000429,2]
[408261673,1773329476080,-1049.32462188,0.000429,2]
[408261674,1773329476093,-306.85773388,0.000429,2]
[408261675,1773329476103,-856.81571584,0.000429,2]
[408261676,1773329476113,-308.12831897,0.000429,2]
[408261677,1773329476123,-300.0,0.000429,2]
[408261678,1773329476133,-459.7549358,0.000429,2]
[408261679,1773329476143,-300.0,0.000429,2]
[408261680,1773329476152,-300.0,0.000429,2]
[408261681,1773329476162,-448.04173911,0.000429,2]
[408261682,1773329476173,-300.0,0.000429,2]
[408261683,1773329476183,-302.22433018,0.000429,2]
[408261684,1773329476192,-520.03833218,0.000429,2]
[408261685,1773329476206,-307.19554063,0.000429,2]
[408261686,1773329476216,-300.0,0.000429,2]
[408261687,1773329476225,-1085.47073912,0.000429,2]
[408261688,1773329476235,-524.43032039,0.000429,2]
[408261689,1773329476244,-300.0,0.000429,2]
[408261690,1773329476255,-550.00000001,0.000429,2]
[408261691,1773329476264,-300.0,0.000429,2]
[408261692,1773329476274,-300.0,0.000429,2]
[408261693,1773329476283,-1049.32462188,0.000429,2]
[408261694,1773329476293,-306.85773388,0.000429,2]
[408261695,1773329476303,-856.81571584,0.000429,2]
[408261696,1773329476312,-308.12831895,0.000429,2]
[408261697,1773329476321,-300.0,0.000429,2]
[408261698,1773329476331,-459.7549358,0.000429,2]
[408261699,1773329476339,-300.0,0.000429,2]
[408261700,1773329476349,-300.0,0.000429,2]
[408261701,1773329476358,-448.04173909,0.000429,2]
[408261702,1773329476368,-300.0,0.000429,2]
[408261703,1773329476377,-302.22433016,0.000429,2]
[408261704,1773329476387,-520.03833215,0.000429,2]
[408261705,1773329476396,-307.19554063,0.000429,2]
[408261706,1773329476405,-576.8066397,0.000429,2]
[408261707,1773329476415,-300.0,0.000429,2]
[408261708,1773329476424,-1085.47073912,0.000429,2]
[408261709,1773329476433,-300.0,0.000429,2]
[408261710,1773329476442,-501.24954812,0.000429,2]
[408261711,1773329476453,-300.0,0.000429,2]
[408261712,1773329476463,-1049.32462188,0.000429,2]
[408261713,1773329476472,-306.85773388,0.000429,2]
[408261714,1773329476481,-856.81571584,0.000429,2]
[408261715,1773329476490,-308.12831897,0.000429,2]
[408261716,1773329476500,-300.0,0.000429,2]
[408261717,1773329476509,-459.7549358,0.000429,2]
[408261718,1773329476518,-300.0,0.000429,2]
[408261719,1773329476527,-300.0,0.000429,2]
[408261720,1773329476538,-448.04173911,0.000429,2]
[408261721,1773329476547,-300.0,0.000429,2]
[408261722,1773329476557,-302.22433019,0.000429,2]
[408261723,1773329476567,-520.03833219,0.000429,2]
[408261724,1773329476576,-307.19554063,0.000429,2]
[408261725,1773329476585,-300.0,0.000429,2]
[408261726,1773329476594,-1085.47073912,0.000429,2]
[408261727,1773329476603,-300.0,0.000429,2]
[408261728,1773329476613,-300.0,0.000429,2]
[408261729,1773329476622,-221.66475537,0.000429,120]
[408261730,1773329476631,-198.55,0.000429,30]
[408261731,1773329476640,-150.9,0.000429,30]
[408261732,1773329476650,-500.0,0.00042918,60]
[408261733,1773329476761,-1728.63144321,0.00043,2]
[408261734,1773329476773,-1000.0,0.00043,120]
[408261735,1773329476782,-7849.0,0.00043,120]
[408261736,1773329476793,-397.0,0.00043,30]
[408261737,1773329476803,-50000.0,0.00043,70]
[408261738,1773329476812,-7021.5,0.00043,30]
[408261739,1773329476821,-5379.52,0.00043,30]
[408261740,1773329476831,-7021.5,0.00043,30]
[408261741,1773329476840,-250.0,0.00043,120]
[408261742,1773329476849,-843.0,0.00043014,120]
[408261743,1773329476859,-250.0,0.00043068,120]
[408261744,1773329476869,-250.0,0.00043068,120]
[408261745,1773329476878,-250.0,0.00043068,120]
[408261746,1773329476887,-250.0,0.00043068,120]
[408261747,1773329476897,-250.0,0.00043068,120]
[408261748,1773329476906,-393.01,0.00043068,120]
[408261749,1773329476916,-200.0,0.00043068,120]
[408261750,1773329476925,-151.5,0.00043071,2]
[408261751,1773329476935,-151.5,0.00043074,2]
[408261752,1773329476944,-151.5,0.00043083,2]
[408261753,1773329476956,-12983.2,0.000431,30]
[408261754,1773329476965,-150.0,0.0004325,30]
[408261755,1773329476975,-150.0,0.0004325,30]
[408261756,1773329476984,-150.0,0.0004325,30]
[408261757,1773329476993,-843.0,0.00043288,120]
[408261758,1773329477003,-2594.0,0.00043324,16]
[408261759,1773329477015,-151.5,0.00043334,2]
[408261760,1773329477025,-153.88,0.0004349,120]
[408261761,1773329477034,-153.88,0.0004349,120]
[408261762,1773329477044,-153.88,0.0004349,120]
[408261763,1773329477055,-153.88,0.0004349,120]
[408261764,1773329477065,-153.88,0.0004349,120]
[408261765,1773329477074,-1000.0,0.000435,30]
[408261766,1773329477085,-156.58617653,0.00043526,2]
[408261767,1773329477094,-151.5,0.00043535,2]
[408261768,1773329477103,-232.72,0.00043547,30]
[408261769,1773329477113,-843.0,0.00043562,120]
[408261770,1773329477123,-1444.0,0.00043562,120]
[408261771,1773329477132,-150.0,0.00043571,30]
[408261772,1773329477141,-150.0,0.00043571,30]
[408261773,1773329477150,-93615.67,0.000436,14]
[408261774,1773329477160,-152.0,0.00043633,7]
[408261775,1773329477169,-163.92,0.00043645,120]
[408261776,1773329477179,-42692.0,0.0004365,60]
[408261777,1773329477188,-156.0,0.000437,120]
[408261778,1773329477198,-1000.0,0.000438,120]
[408261779,1773329477208,-561.0,0.000438,60]
[408261780,1773329477217,-221.94,0.000438,120]
[408261781,1773329477227,-156.58617653,0.000438,2]
[408261782,1773329477236,-843.0,0.00043836,120]
[408261783,1773329477245,-151.5,0.00043836,2]
[408261784,1773329477254,-1157.0,0.00043836,120]
[408261785,1773329477264,-1157.0,0.00043836,120]
[408261786,1773329477273,-1157.0,0.00043836,120]
[408261787,1773329477282,-1157.0,0.00043836,120]
[408261788,1773329477292,-1157.0,0.00043836,120]
[408261789,1773329477302,-1157.0,0.00043836,120]
[408261790,1773329477311,-1157.0,0.00043836,120]
[408261791,1773329477320,-1157.0,0.00043836,120]
[408261792,1773329477330,-1157.0,0.00043836,120]
[408261793,1773329477339,-1157.0,0.00043836,120]
[408261794,1773329477348,-1157.0,0.00043836,120]
[408261795,1773329477358,-1157.0,0.00043836,120]
[408261796,1773329477367,-1157.0,0.00043836,120]
[408261797,1773329477377,-1157.0,0.00043836,120]
[408261798,1773329477386,-1157.0,0.00043836,120]
[408261799,1773329477396,-1157.0,0.00043836,120]
[408261800,1773329477405,-1157.0,0.00043836,120]
[408261801,1773329477414,-1157.0,0.00043836,120]
[408261802,1773329477424,-1157.0,0.00043836,120]
[408261803,1773329477433,-1157.0,0.00043836,120]
[408261804,1773329477443,-1157.0,0.00043836,120]
[408261805,1773329477454,-1157.0,0.00043836,120]
[408261806,1773329477463,-1157.0,0.00043836,120]
[408261807,1773329477472,-1168.15385268,0.00043836,120]
[408261808,1773329477482,-282.43,0.00043861,90]
[408261809,1773329477491,-654.52622246,0.00044,2]
[408261810,1773329477500,-1000.0,0.00044,120]
[408261811,1773329477509,-10000.0,0.00044,7]
[408261812,1773329477519,-1019.0,0.00044,30]
[408261813,1773329477528,-83000.0,0.00044,50]
[408261814,1773329477537,-20051.14958563,0.00044,2]
[408261815,1773329477547,-150.9,0.00044,30]
[408261816,1773329477557,-43226.02830266,0.00044,120]
[408261817,1773329477566,-563.717969,0.00044,57]
[408261818,1773329477576,-150.0,0.00044,30]
[408261819,1773329477585,-150.0,0.00044,30]
[408261820,1773329477594,-151.5,0.00044003,2]
[408261821,1773329477604,-151.5,0.00044008,2]
[408261822,1773329477613,-500.0,0.00044014,60]
[408261823,1773329477623,-151.5,0.00044018,2]
[408261824,1773329477632,-156.58617653,0.00044074,2]
[408261825,1773329477641,-723.74893701,0.000441,120]
[408261826,1773329477651,-152.0,0.000441,120]
[408261827,1773329477660,-843.0,0.0004411,120]
[408261828,1773329477670,-151.5,0.00044166,2]
[408261829,1773329477680,-200.0,0.00044309,2]
[408261830,1773329477690,-200.0,0.00044309,2]
[408261831,1773329477699,-200.0,0.00044309,2]
[408261832,1773329477708,-200.0,0.00044309,2]
[408261833,1773329477718,-200.0,0.00044309,2]
[408261834,1773329477728,-200.0,0.00044309,2]
[408261835,1773329477738,-200.0,0.00044309,2]
[408261836,1773329477748,-200.0,0.00044309,2]
[408261837,1773329477759,-200.0,0.00044309,2]
[408261838,1773329477770,-200.0,0.00044309,2]
[408261839,1773329477780,-200.0,0.00044309,2]
[408261840,1773329477790,-264.0,0.00044309,2]
[408261841,1773329477800,-156.58617653,0.00044348,2]
[408261842,1773329477812,-843.0,0.00044384,120]
[408261843,1773329477821,-2500.0,0.000445,120]
[408261844,1773329477831,-2552.2551656,0.00044593,2]
[408261845,1773329477841,-156.58617653,0.00044622,2]
[408261846,1773329477851,-843.0,0.00044658,120]
[408261847,1773329477860,-150.0,0.0004475,30]
[408261848,1773329477870,-162.49,0.0004479,120]
[408261849,1773329477879,-400.0,0.000448,120]
[408261850,1773329477888,-150.0,0.00044857,30]
[408261851,1773329477897,-150.0,0.00044857,30]
[408261852,1773329477906,-162.49,0.0004489,120]
[408261853,1773329477916,-156.58617653,0.00044896,2]
[408261854,1773329477925,-36569.77634829,0.000449,30]
[408261855,1773329477935,-151.5,0.00044901,2]
[408261856,1773329477944,-151.5,0.00044925,2]
[408261857,1773329477954,-500.0,0.00044932,10]
[408261858,1773329477964,-151.5,0.00044934,2]
[408261859,1773329477973,-151.5,0.00044963,2]
[408261860,1773329477983,-232.72,0.00044989,30]
[408261861,1773329477993,-162.5092355,0.0004499,120]
[408261862,1773329478003,-1004.72544799,0.00045,2]
[408261863,1773329478015,-50000.0,0.00045,60]
[408261864,1773329478025,-1219.39201702,0.00045,120]
[408261865,1773329478034,-100000.0,0.00045,60]
[408261866,1773329478043,-118162.0,0.00045,60]
[408261867,1773329478054,-316.0,0.00045,14]
[408261868,1773329478063,-500.0,0.00045,120]
[408261869,1773329478073,-5059.0,0.00045,7]
[408261870,1773329478083,-151.15747902,0.00045,30]
[408261871,1773329478092,-7849.0,0.00045,120]
[408261872,1773329478101,-155.05404499,0.00045,120]
[408261873,1773329478110,-166.0,0.00045,120]
[408261874,1773329478121,-8572.88209643,0.00045,120]
[408261875,1773329478130,-173.04192008,0.00045,120]
[408261876,1773329478140,-150.0,0.00045,120]
[408261877,1773329478149,-3000.0,0.00045,120]
[408261878,1773329478158,-5000.0,0.00045,120]
[408261879,1773329478167,-72295.4400283,0.00045,30]
[408261880,1773329478177,-265.94,0.00045,120]
[408261881,1773329478186,-10003.87521548,0.00045,120]
[408261882,1773329478196,-161.3,0.00045,85]
[408261883,1773329478206,-20124.924129,0.00045,120]
[408261884,1773329478215,-10041.34944347,0.00045,120]
[408261885,1773329478225,-250.000001,0.00045,120]
[408261886,1773329478234,-5372.08,0.00045,30]
[408261887,1773329478243,-7021.5,0.00045,30]
[408261888,1773329478253,-42692.0,0.00045,60]
[408261889,1773329478262,-372.8,0.00045,120]
[408261890,1773329478271,-330.5,0.00045,120]
[408261891,1773329478281,-689.29,0.00045,120]
[408261892,1773329478291,-407.64,0.00045,120]
[408261893,1773329478300,-250.0,0.00045,120]
[408261894,1773329478310,-507.0,0.00045,27]
[408261895,1773329478320,-4207.83962326,0.00045,30]
[408261896,1773329478330,-353.0,0.00045096,30]
[408261897,1773329478339,-1442.0,0.000451,2]
[408261898,1773329478349,-500.0,0.0004511,60]
[408261899,1773329478358,-4000.0,0.0004515,30]
[408261900,1773329478367,-156.58617653,0.0004517,2]
[408261901,1773329478376,-151.5,0.00045172,2]
[408261902,1773329478385,-63189.9053,0.00045205,30]
[408261903,1773329478492,-1000.0,0.00045205,10]
[408261904,1773329478503,-227.65576859,0.00045205,30]
[408261905,1773329478513,-27284.14892556,0.00045206,30]
[408261906,1773329478522,-151.5,0.00045263,2]
[408261907,1773329478532,-1233.805,0.000453,120]
[408261908,1773329478541,-1233.8,0.000453,120]
[408261909,1773329478551,-283.75020835,0.000453,90]
[408261910,1773329478560,-151.5,0.00045318,2]
[408261911,1773329478569,-227.65576859,0.00045397,30]
[408261912,1773329478579,-1009.11928034,0.00045421,120]
[408261913,1773329478588,-156.58617653,0.00045444,2]
[408261914,1773329478597,-1500.0,0.00045479,10]
[408261915,1773329478607,-3500.0,0.000455,120]
[408261916,1773329478616,-150.0,0.000455,30]
[408261917,1773329478625,-150.0,0.000455,30]
[408261918,1773329478634,-150.0,0.000455,30]
[408261919,1773329478644,-150.0,0.000455,30]
[408261920,1773329478653,-150.0,0.000455,30]
[408261921,1773329478662,-150.0,0.000455,30]
[408261922,1773329478673,-150.0,0.000455,30]
[408261923,1773329478682,-10041.34944347,0.00045556,120]
[408261924,1773329478691,-227.65576859,0.00045562,30]
[408261925,1773329478701,-156.0,0.000456,120]
[408261926,1773329478710,-4944.62,0.000457,120]
[408261927,1773329478721,-156.58617653,0.00045718,2]
[408261928,1773329478730,-8780.70229826,0.00045753,105]
[408261929,1773329478740,-843.0,0.00045753,120]
[408261930,1773329478749,-524.68419972,0.00045753,10]
[408261931,1773329478759,-227.65576859,0.00045753,30]
[408261932,1773329478769,-657.67,0.000458,120]
[408261933,1773329478778,-227.65576859,0.00045918,30]
[408261934,1773329478788,-2000.0,0.0004598,120]
[408261935,1773329478798,-2000.0,0.0004599,120]
[408261936,1773329478807,-156.58617653,0.00045992,2]
[408261937,1773329478817,-306.84731719,0.00046,2]
[408261938,1773329478826,-3000.0,0.00046,120]
[408261939,1773329478835,-1000.0,0.00046,14]
[408261940,1773329478846,-1000.0,0.00046,14]
[408261941,1773329478855,-1000.0,0.00046,7]
[408261942,1773329478864,-1000.0,0.00046,7]
[408261943,1773329478874,-1000.0,0.00046,7]
[408261944,1773329478883,-1000.0,0.00046,7]
[408261945,1773329478893,-1000.0,0.00046,7]
[408261946,1773329478902,-1000.0,0.00046,7]
[408261947,1773329478912,-1000.0,0.00046,7]
[408261948,1773329478922,-1000.0,0.00046,7]
[408261949,1773329478931,-1000.0,0.00046,7]
[408261950,1773329478940,-1000.0,0.00046,7]
[408261951,1773329478949,-1000.0,0.00046,7]
[408261952,1773329478958,-1000.0,0.00046,7]
[408261953,1773329478967,-30253.56194411,0.00046,120]
[408261954,1773329478976,-4000.0,0.00046,120]
[408261955,1773329478985,-789.0,0.00046,120]
[408261956,1773329478995,-1125.35841585,0.00046,120]
[408261957,1773329479007,-5068.95583655,0.00046,120]
[408261958,1773329479020,-1285.40940044,0.00046,120]
[408261959,1773329479029,-507.35215329,0.00046,7]
[408261960,1773329479039,-644.621649,0.00046,120]
[408261961,1773329479048,-612.83358645,0.00046,120]
[408261962,1773329479058,-1752.51,0.00046,120]
[408261963,1773329479067,-250.0,0.00046,30]
[408261964,1773329479077,-843.0,0.00046027,120]
[408261965,1773329479088,-364.09878811,0.00046027,2]
[408261966,1773329479098,-227.65576859,0.0004611,30]
[408261967,1773329479108,-10041.34944347,0.00046111,120]
[408261968,1773329479118,-150.0,0.00046143,30]
[408261969,1773329479127,-150.0,0.00046143,30]
[408261970,1773329479137,-152.0,0.000462,120]
[408261971,1773329479147,-500.0,0.00046206,60]
[408261972,1773329479156,-150.0,0.0004625,30]
[408261973,1773329479165,-156.58617653,0.00046266,2]
[408261974,1773329479175,-843.0,0.00046301,120]
[408261975,1773329479185,-227.65576859,0.00046301,30]
[408261976,1773329479194,-42692.0,0.0004635,60]
[408261977,1773329479204,-303.19588522,0.00046388,30]
[408261978,1773329479213,-245.10854424,0.00046388,30]
[408261979,1773329479222,-196.08683539,0.00046388,30]
[408261980,1773329479231,-156.86946831,0.00046388,30]
[408261981,1773329479240,-151.5,0.00046412,2]
[408261982,1773329479250,-152.0,0.00046417,8]
[408261983,1773329479259,-232.72,0.00046431,30]
[408261984,1773329479267,-227.65576859,0.00046466,30]
[408261985,1773329479276,-196.5259752,0.00046475,2]
[408261986,1773329479287,-357.12320033,0.00046475,2]
[408261987,1773329479297,-213.94,0.000465,120]
[408261988,1773329479306,-4355.42,0.000465,120]
[408261989,1773329479315,-23116.86,0.000465,120]
[408261990,1773329479324,-10004.2,0.000465,120]
[408261991,1773329479333,-48516.56,0.000465,120]
[408261992,1773329479342,-173.89549444,0.000465,120]
[408261993,1773329479352,-4500.0,0.000465,120]
[408261994,1773329479362,-9309.6705306,0.000465,30]
[408261995,1773329479371,-204.25,0.000465,120]
[408261996,1773329479381,-156.58617653,0.0004654,2]
[408261997,1773329479390,-2346414.75883113,0.00046554,120]
[408261998,1773329479399,-500.0,0.00046575,120]
[408261999,1773329479408,-500.0,0.00046575,120]
[408262000,1773329479418,-500.0,0.00046575,120]
[408262001,1773329479427,-500.0,0.00046575,120]
[408262002,1773329479436,-500.0,0.00046575,120]
[408262003,1773329479445,-500.0,0.00046575,120]
[408262004,1773329479455,-500.0,0.00046575,120]
[408262005,1773329479464,-500.0,0.00046575,120]
[408262006,1773329479473,-500.0,0.00046575,120]
[408262007,1773329479483,-500.0,0.00046575,120]
[408262008,1773329479492,-500.0,0.00046575,120]
[408262009,1773329479501,-500.0,0.00046575,120]
[408262010,1773329479510,-500.0,0.00046575,120]
[408262011,1773329479521,-500.0,0.00046575,120]
[408262012,1773329479531,-500.0,0.00046575,120]
[408262013,1773329479541,-500.0,0.00046575,120]
[408262014,1773329479550,-500.0,0.00046575,120]
[408262015,1773329479559,-500.0,0.00046575,120]
[408262016,1773329479569,-500.0,0.00046575,120]
[408262017,1773329479580,-505.25889922,0.00046575,120]
[408262018,1773329479590,-843.0,0.00046575,120]
[408262019,1773329479601,-300.0,0.00046575,30]
[408262020,1773329479610,-300.0,0.00046575,30]
[408262021,1773329479619,-300.0,0.00046575,30]
[408262022,1773329479628,-300.0,0.00046575,30]
[408262023,1773329479638,-300.0,0.00046575,30]
[408262024,1773329479647,-300.0,0.00046575,30]
[408262025,1773329479656,-300.0,0.00046575,30]
[408262026,1773329479665,-300.0,0.00046575,30]
[408262027,1773329479674,-300.0,0.00046575,30]
[408262028,1773329479683,-300.0,0.00046575,30]
[408262029,1773329479692,-300.0,0.00046575,30]
[408262030,1773329479704,-300.0,0.00046575,30]
[408262031,1773329479713,-300.0,0.00046575,30]
[408262032,1773329479722,-300.0,0.00046575,30]
[408262033,1773329479733,-300.0,0.00046575,30]
[408262034,1773329479743,-300.0,0.00046575,30]
[408262035,1773329479752,-205.632287,0.00046575,120]
[408262036,1773329479764,-401.36,0.00046575,120]
[408262037,1773329479774,-150.0,0.00046576,30]
[408262038,1773329479783,-156.91,0.0004658,120]
[408262039,1773329479793,-3575.6022363,0.000466,60]
[408262040,1773329479802,-1000.0,0.00046645,2]
[408262041,1773329479811,-1000.0,0.00046645,2]
[408262042,1773329479820,-1000.0,0.00046645,2]
[408262043,1773329479830,-1000.0,0.00046645,2]
[408262044,1773329479840,-1000.0,0.00046645,2]
[408262045,1773329479851,-1000.0,0.00046645,2]
[408262046,1773329479860,-1000.0,0.00046645,2]
[408262047,1773329479870,-1000.0,0.00046645,2]
[408262048,1773329479879,-1000.0,0.00046645,2]
[408262049,1773329479888,-1000.0,0.00046645,2]
[408262050,1773329479897,-1000.0,0.00046645,2]
[408262051,1773329479906,-1000.0,0.00046645,2]
[408262052,1773329479915,-1000.0,0.00046645,2]
[408262053,1773329479924,-1000.0,0.00046645,2]
[408262054,1773329479933,-1000.0,0.00046645,2]
[408262055,1773329479943,-1000.0,0.00046645,2]
[408262056,1773329479953,-1000.0,0.00046645,2]
[408262057,1773329479962,-1000.0,0.00046645,2]
[408262058,1773329479971,-1000.0,0.00046645,2]
[408262059,1773329479980,-1000.0,0.00046645,2]
[408262060,1773329480091,-1000.0,0.00046645,2]
[408262061,1773329480102,-1000.0,0.00046645,2]
[408262062,1773329480111,-1000.0,0.00046645,2]
[408262063,1773329480121,-1000.0,0.00046645,2]
[408262064,1773329480131,-1000.0,0.00046645,2]